[Event "Hull 4NCL GM Tournament"]
[Site "Hull University, Hull, UK"]
[Date "2021.10.21"]
[Round "2.2"]
[White "Fodor, Tamas Jr."]
[Black "Turner, Matthew J"]
[Result "1/2-1/2"]
[TimeControl "90+30"]
[WhiteElo "2524"]
[BlackElo "2471"]

1. d4 {[%clk 01:30:56]} {[%emt 00:00:03]} Nf6 {[%clk 01:30:00]} {[%emt
00:01:01]} 2. Nf3 {[%clk 01:31:20]} {[%emt 00:00:06]} e6 {[%clk 01:30:04]}
{[%emt 00:00:26]} 3. Bf4 {[%clk 01:31:44]} {[%emt 00:00:05]} b6 {[%clk
01:29:43]} {[%emt 00:00:52]} 4. e3 {[%clk 01:30:30]} {[%emt 00:01:44]} Bb7
{[%clk 01:29:06]} {[%emt 00:01:07]} 5. Bd3 {[%clk 01:29:33]} {[%emt 00:01:27]}
d6 {[%clk 01:26:26]} {[%emt 00:03:10]} 6. h3 {[%clk 01:29:14]} {[%emt
00:00:49]} Nbd7 {[%clk 01:26:20]} {[%emt 00:00:36]} 7. O-O {[%clk 01:29:23]}
{[%emt 00:00:20]} Ne4 {[%clk 01:21:39]} {[%emt 00:05:11]} 8. Nbd2 {[%clk
01:27:20]} {[%emt 00:02:33]} Nxd2 {[%clk 01:21:36]} {[%emt 00:00:34]} 9. Nxd2
{[%clk 01:25:14]} {[%emt 00:02:35]} Be7 {[%clk 01:21:08]} {[%emt 00:00:58]} 10.
a4 {[%clk 01:22:30]} {[%emt 00:03:15]} a5 {[%clk 01:18:45]} {[%emt 00:02:52]}
11. Bh2 {[%clk 01:20:18]} {[%emt 00:02:41]} O-O {[%clk 01:17:51]} {[%emt
00:01:25]} 12. f4 {[%clk 01:19:41]} {[%emt 00:01:07]} e5 {[%clk 01:13:38]}
{[%emt 00:04:43]} 13. fxe5 {[%clk 01:17:07]} {[%emt 00:03:04]} dxe5 {[%clk
01:13:55]} {[%emt 00:00:13]} 14. dxe5 {[%clk 01:16:44]} {[%emt 00:00:53]} Nc5
{[%clk 01:13:01]} {[%emt 00:01:24]} 15. Nf3 {[%clk 01:14:35]} {[%emt 00:02:39]}
Qd5 {[%clk 01:08:47]} {[%emt 00:04:43]} 16. b3 {[%clk 01:05:49]} {[%emt
00:09:17]} Rad8 {[%clk 01:00:33]} {[%emt 00:08:45]} 17. Bc4 {[%clk 01:05:06]}
{[%emt 00:01:12]} Qe4 {[%clk 01:00:44]} {[%emt 00:00:19]} 18. Qe2 {[%clk
01:05:22]} {[%emt 00:00:15]} Ne6 {[%clk 00:57:15]} {[%emt 00:03:59]} 19. Bd3
{[%clk 01:02:01]} {[%emt 00:03:51]} Qb4 {[%clk 00:57:20]} {[%emt 00:00:26]} 20.
Rad1 {[%clk 00:59:20]} {[%emt 00:03:10]} Be4 {[%clk 00:46:07]} {[%emt
00:11:43]} 21. Bg3 {[%clk 00:53:41]} {[%emt 00:06:08]} Bxd3 {[%clk 00:43:21]}
{[%emt 00:03:17]} 22. Rxd3 {[%clk 00:54:05]} {[%emt 00:00:06]} Rxd3 {[%clk
00:43:09]} {[%emt 00:00:42]} 23. Qxd3 {[%clk 00:54:23]} {[%emt 00:00:11]} Rd8
{[%clk 00:43:05]} {[%emt 00:00:34]} 24. Qe2 {[%clk 00:53:00]} {[%emt 00:01:53]}
Qe4 {[%clk 00:42:25]} {[%emt 00:01:10]} 25. Kh2 {[%clk 00:50:53]} {[%emt
00:02:36]} Bc5 {[%clk 00:37:50]} {[%emt 00:05:06]} 26. Re1 {[%clk 00:50:19]}
{[%emt 00:01:04]} Bb4 {[%clk 00:34:26]} {[%emt 00:03:54]} 27. Rf1 {[%clk
00:50:14]} {[%emt 00:00:35]} Bc5 {[%clk 00:34:50]} {[%emt 00:00:07]} 28. Re1
{[%clk 00:50:18]} {[%emt 00:00:26]} 1/2-1/2

[Event "Hull 4NCL GM Tournament"]
[Site "Hull University, Hull, UK"]
[Date "2021.10.22"]
[Round "4.1"]
[White "Willow, Jonah B"]
[Black "Fodor, Tamas Jr."]
[Result "0-1"]
[TimeControl "90+30"]
[WhiteElo "2353"]
[BlackElo "2524"]

1. e4 {[%clk 01:30:57]} {[%emt 00:00:02]} e6 {[%clk 01:30:56]} {[%emt
00:00:04]} 2. d4 {[%clk 01:31:23]} {[%emt 00:00:04]} d5 {[%clk 01:31:21]}
{[%emt 00:00:05]} 3. Nd2 {[%clk 01:31:49]} {[%emt 00:00:05]} Nf6 {[%clk
01:31:42]} {[%emt 00:00:09]} 4. e5 {[%clk 01:31:54]} {[%emt 00:00:24]} Nfd7
{[%clk 01:32:08]} {[%emt 00:00:05]} 5. c3 {[%clk 01:32:10]} {[%emt 00:00:14]}
c5 {[%clk 01:32:33]} {[%emt 00:00:05]} 6. f4 {[%clk 01:32:15]} {[%emt
00:00:25]} Nc6 {[%clk 01:32:57]} {[%emt 00:00:06]} 7. Ndf3 {[%clk 01:32:35]}
{[%emt 00:00:09]} Qb6 {[%clk 01:33:21]} {[%emt 00:00:07]} 8. g3 {[%clk
01:32:17]} {[%emt 00:00:49]} cxd4 {[%clk 01:33:29]} {[%emt 00:00:21]} 9. cxd4
{[%clk 01:32:43]} {[%emt 00:00:04]} Be7 {[%clk 01:33:52]} {[%emt 00:00:06]} 10.
Ne2 {[%clk 01:32:42]} {[%emt 00:00:31]} O-O {[%clk 01:34:15]} {[%emt 00:00:07]}
11. Bh3 {[%clk 01:32:35]} {[%emt 00:00:38]} f6 {[%clk 01:34:38]} {[%emt
00:00:07]} 12. Bxe6+ {[%clk 01:32:48]} {[%emt 00:00:17]} Kh8 {[%clk 01:35:02]}
{[%emt 00:00:06]} 13. exf6 {[%clk 01:32:51]} {[%emt 00:00:27]} Nxf6 {[%clk
01:35:26]} {[%emt 00:00:06]} 14. Bxc8 {[%clk 01:33:07]} {[%emt 00:00:15]} Bb4+
{[%clk 01:35:28]} {[%emt 00:00:27]} 15. Kf2 {[%clk 01:33:26]} {[%emt 00:00:11]}
Raxc8 {[%clk 01:35:25]} {[%emt 00:00:33]} 16. a3 {[%clk 01:33:24]} {[%emt
00:00:33]} Qa6 {[%clk 01:35:11]} {[%emt 00:00:44]} 17. Kg2 {[%clk 01:11:27]}
{[%emt 00:22:27]} Ne7 {[%clk 01:35:22]} {[%emt 00:00:19]} 18. Ne5 {[%clk
00:56:04]} {[%emt 00:15:52]} Nf5 {[%clk 01:26:06]} {[%emt 00:09:46]} 19. Qd3
{[%clk 00:54:24]} {[%emt 00:02:11]} Qxd3 {[%clk 01:22:45]} {[%emt 00:03:51]} 20.
Nxd3 {[%clk 00:54:41]} {[%emt 00:00:13]} Rc2 {[%clk 01:21:54]} {[%emt
00:01:20]} 21. Kf3 {[%clk 00:53:34]} {[%emt 00:01:37]} Ba5 {[%clk 01:21:52]}
{[%emt 00:00:32]} 22. Rd1 {[%clk 00:43:31]} {[%emt 00:10:33]} Ne4 {[%clk
01:19:06]} {[%emt 00:03:15]} 23. b4 {[%clk 00:30:16]} {[%emt 00:13:47]} Bb6
{[%clk 01:18:44]} {[%emt 00:00:52]} 24. Ne1 {[%clk 00:30:11]} {[%emt 00:00:35]}
Rc4 {[%clk 01:06:59]} {[%emt 00:12:15]} 25. Be3 {[%clk 00:22:10]} {[%emt
00:08:31]} g5 {[%clk 01:05:47]} {[%emt 00:01:42]} 26. Bg1 {[%clk 00:21:51]}
{[%emt 00:00:49]} h5 {[%clk 01:02:03]} {[%emt 00:04:14]} 27. Rac1 {[%clk
00:20:45]} {[%emt 00:01:36]} g4+ {[%clk 01:00:41]} {[%emt 00:01:52]} 28. Kg2
{[%clk 00:21:14]} {[%emt 00:00:02]} Re8 {[%clk 00:58:41]} {[%emt 00:02:29]} 29.
Rxc4 {[%clk 00:20:56]} {[%emt 00:00:49]} dxc4 {[%clk 00:57:41]} {[%emt
00:01:30]} 30. Nc2 {[%clk 00:20:28]} {[%emt 00:00:58]} h4 {[%clk 00:52:29]}
{[%emt 00:05:41]} 31. gxh4 {[%clk 00:13:11]} {[%emt 00:07:48]} Nxh4+ {[%clk
00:52:12]} {[%emt 00:00:47]} 32. Kf1 {[%clk 00:11:20]} {[%emt 00:02:21]} Nf3
{[%clk 00:52:27]} {[%emt 00:00:15]} 33. Ne3 {[%clk 00:11:36]} {[%emt 00:00:14]}
Ned2+ {[%clk 00:50:48]} {[%emt 00:02:08]} 34. Kf2 {[%clk 00:11:04]} {[%emt
00:01:02]} Nxd4 {[%clk 00:49:50]} {[%emt 00:01:28]} 35. Rxd2 {[%clk 00:08:39]}
{[%emt 00:02:56]} Nf3 {[%clk 00:48:40]} {[%emt 00:01:39]} 36. Ra2 {[%clk
00:04:44]} {[%emt 00:04:26]} Bxe3+ {[%clk 00:44:14]} {[%emt 00:04:56]} 37. Kg2
{[%clk 00:05:10]} {[%emt 00:00:04]} Nxg1 {[%clk 00:44:23]} {[%emt 00:00:21]} 38.
Nxg1 {[%clk 00:05:39]} {[%emt 00:00:02]} Rd8 {[%clk 00:44:22]} {[%emt
00:00:31]} 39. Re2 {[%clk 00:04:33]} {[%emt 00:01:36]} Rd3 {[%clk 00:44:11]}
{[%emt 00:00:40]} 40. Rc2 {[%clk 00:02:31]} {[%emt 00:02:32]} b5 {[%clk
00:42:46]} {[%emt 00:01:55]} 41. Ne2 {[%clk 00:02:35]} {[%emt 00:00:26]} Rxa3
{[%clk 00:42:51]} {[%emt 00:00:25]} 42. Kg3 {[%clk 00:01:54]} {[%emt 00:01:11]}
Bd2+ {[%clk 00:42:06]} {[%emt 00:01:14]} 43. Kxg4 {[%clk 00:02:20]} {[%emt
00:00:04]} Bxb4 {[%clk 00:42:33]} {[%emt 00:00:04]} 44. Nd4 {[%clk 00:01:36]}
{[%emt 00:01:14]} a6 {[%clk 00:42:57]} {[%emt 00:00:06]} 45. f5 {[%clk
00:01:37]} {[%emt 00:00:30]} Rd3 {[%clk 00:42:59]} {[%emt 00:00:27]} 46. Nc6
{[%clk 00:01:32]} {[%emt 00:00:35]} Bd6 {[%clk 00:42:35]} {[%emt 00:00:53]} 47.
f6 {[%clk 00:01:36]} {[%emt 00:00:27]} c3 {[%clk 00:42:11]} {[%emt 00:00:54]}
48. Kf5 {[%clk 00:01:10]} {[%emt 00:00:56]} b4 {[%clk 00:42:35]} {[%emt
00:00:06]} 49. Re2 {[%clk 00:00:49]} {[%emt 00:00:52]} Rd2 {[%clk 00:38:36]}
{[%emt 00:04:29]} 50. Re8+ {[%clk 00:00:41]} {[%emt 00:00:38]} Kh7 {[%clk
00:39:01]} {[%emt 00:00:04]} 51. Re7+ {[%clk 00:00:44]} {[%emt 00:00:27]} Kh6
{[%clk 00:38:08]} {[%emt 00:01:21]} 52. Re4 {[%clk 00:00:35]} {[%emt 00:00:40]}
Rf2+ {[%clk 00:37:39]} {[%emt 00:00:59]} 53. Ke6 {[%clk 00:01:01]} {[%emt
00:00:04]} c2 {[%clk 00:37:49]} {[%emt 00:00:20]} 54. Rc4 {[%clk 00:01:06]}
{[%emt 00:00:25]} b3 {[%clk 00:37:53]} {[%emt 00:00:26]} 55. Nd8 {[%clk
00:00:38]} {[%emt 00:00:59]} b2 {[%clk 00:37:46]} {[%emt 00:00:36]} 56. Nf7
{[%clk 00:00:34]} {[%emt 00:00:35]} Kh5 {[%clk 00:38:10]} {[%emt 00:00:05]} 0-1

[Event "Hull 4NCL GM Tournament"]
[Site "Hull University, Hull, UK"]
[Date "2021.10.22"]
[Round "4.2"]
[White "Jackson, James P"]
[Black "Royal, Shreyas"]
[Result "1-0"]
[TimeControl "90+30"]
[WhiteElo "2386"]
[BlackElo "2226"]

1. e4 {[%clk 01:30:58]} {[%emt 00:00:01]} e5 {[%clk 01:30:56]} {[%emt
00:00:05]} 2. Nf3 {[%clk 01:31:24]} {[%emt 00:00:04]} Nc6 {[%clk 01:31:20]}
{[%emt 00:00:06]} 3. Bb5 {[%clk 01:31:50]} {[%emt 00:00:04]} a6 {[%clk
01:31:46]} {[%emt 00:00:05]} 4. Ba4 {[%clk 01:32:16]} {[%emt 00:00:04]} Nf6
{[%clk 01:32:10]} {[%emt 00:00:05]} 5. O-O {[%clk 01:32:41]} {[%emt 00:00:05]}
Be7 {[%clk 01:32:36]} {[%emt 00:00:05]} 6. Re1 {[%clk 01:33:07]} {[%emt
00:00:05]} b5 {[%clk 01:32:59]} {[%emt 00:00:07]} 7. Bb3 {[%clk 01:33:33]}
{[%emt 00:00:04]} d6 {[%clk 01:33:25]} {[%emt 00:00:04]} 8. c3 {[%clk
01:33:57]} {[%emt 00:00:06]} O-O {[%clk 01:33:50]} {[%emt 00:00:04]} 9. h3
{[%clk 01:34:23]} {[%emt 00:00:04]} Bb7 {[%clk 01:33:47]} {[%emt 00:00:34]} 10.
d4 {[%clk 01:33:39]} {[%emt 00:01:14]} Re8 {[%clk 01:34:10]} {[%emt 00:00:07]}
11. Nbd2 {[%clk 01:31:46]} {[%emt 00:02:22]} Bf8 {[%clk 01:34:00]} {[%emt
00:00:39]} 12. a3 {[%clk 01:23:10]} {[%emt 00:09:07]} h6 {[%clk 01:31:28]}
{[%emt 00:03:02]} 13. Bc2 {[%clk 01:19:37]} {[%emt 00:04:03]} Nb8 {[%emt
00:02:59]} 14. b4 {[%emt 00:03:28]} Nbd7 {[%emt 00:01:16]} 15. Bb2 {[%emt
00:01:13]} a5 {[%emt 00:15:03]} 16. Bd3 {[%clk 01:03:20]} {[%emt 00:00:35]} c6
{[%clk 01:26:24]} {[%emt 00:00:18]} 17. Qb1 {[%clk 00:56:33]} {[%emt 00:07:17]}
axb4 {[%clk 00:41:39]} {[%emt 00:45:16]} 18. axb4 {[%clk 00:56:04]} {[%emt
00:00:58]} c5 {[%clk 00:41:29]} {[%emt 00:00:39]} 19. bxc5 {[%clk 00:47:46]}
{[%emt 00:08:49]} dxc5 {[%clk 00:35:00]} {[%emt 00:06:59]} 20. Bxb5 {[%clk
00:45:34]} {[%emt 00:02:42]} cxd4 {[%clk 00:25:16]} {[%emt 00:10:14]} 21. cxd4
{[%clk 00:45:57]} {[%emt 00:00:07]} Qb6 {[%clk 00:25:40]} {[%emt 00:00:06]} 22.
Bxd7 {[%clk 00:43:20]} {[%emt 00:03:07]} Nxd7 {[%clk 00:26:02]} {[%emt
00:00:08]} 23. Nc4 {[%clk 00:43:36]} {[%emt 00:00:14]} Qb5 {[%clk 00:25:45]}
{[%emt 00:00:47]} 24. Ncxe5 {[%clk 00:42:06]} {[%emt 00:02:01]} Nxe5 {[%clk
00:25:36]} {[%emt 00:00:38]} 25. dxe5 {[%clk 00:41:56]} {[%emt 00:00:40]} Qb4
{[%clk 00:22:57]} {[%emt 00:03:09]} 26. Bd4 {[%clk 00:40:00]} {[%emt 00:02:26]}
Rxa1 {[%clk 00:21:51]} {[%emt 00:01:35]} 27. Qxa1 {[%clk 00:38:38]} {[%emt
00:01:53]} Ra8 {[%clk 00:19:48]} {[%emt 00:02:32]} 28. Qc3 {[%clk 00:25:25]}
{[%emt 00:13:44]} Qxc3 {[%clk 00:16:38]} {[%emt 00:03:40]} 29. Bxc3 {[%clk
00:25:49]} {[%emt 00:00:06]} Bc5 {[%clk 00:17:05]} {[%emt 00:00:02]} 30. Bd4
{[%clk 00:25:29]} {[%emt 00:00:51]} Bxd4 {[%clk 00:16:52]} {[%emt 00:00:43]} 31.
Nxd4 {[%clk 00:25:54]} {[%emt 00:00:05]} Ra4 {[%clk 00:17:19]} {[%emt
00:00:03]} 32. Nb5 {[%clk 00:25:17]} {[%emt 00:01:07]} Rxe4 {[%clk 00:17:33]}
{[%emt 00:00:16]} 33. Rxe4 {[%clk 00:25:40]} {[%emt 00:00:08]} Bxe4 {[%clk
00:17:59]} {[%emt 00:00:04]} 34. f4 {[%clk 00:24:41]} {[%emt 00:01:29]} Kf8
{[%clk 00:12:53]} {[%emt 00:05:36]} 35. g4 {[%clk 00:23:57]} {[%emt 00:01:13]}
g6 {[%clk 00:09:12]} {[%emt 00:04:11]} 36. Kf2 {[%clk 00:20:28]} {[%emt
00:03:59]} Ke7 {[%clk 00:08:36]} {[%emt 00:01:06]} 37. Nd6 {[%clk 00:19:31]}
{[%emt 00:01:27]} Bd5 {[%clk 00:07:36]} {[%emt 00:01:30]} 38. f5 {[%clk
00:16:50]} {[%emt 00:03:11]} gxf5 {[%clk 00:05:44]} {[%emt 00:02:22]} 39. Nxf5+
{[%clk 00:16:30]} {[%emt 00:00:50]} Ke6 {[%clk 00:06:08]} {[%emt 00:00:06]} 40.
Nxh6 {[%clk 00:16:55]} {[%emt 00:00:06]} Kxe5 {[%clk 00:06:32]} {[%emt
00:00:06]} 41. Kg3 {[%clk 00:14:53]} {[%emt 00:02:32]} Kf6 {[%clk 00:03:23]}
{[%emt 00:03:39]} 42. Kf4 {[%clk 00:15:02]} {[%emt 00:00:21]} Bc4 {[%clk
00:03:02]} {[%emt 00:00:51]} 43. h4 {[%clk 00:14:24]} {[%emt 00:01:08]} Kg6
{[%clk 00:02:35]} {[%emt 00:00:57]} 44. Nf5 {[%clk 00:14:20]} {[%emt 00:00:34]}
Be2 {[%clk 00:03:01]} {[%emt 00:00:04]} 45. Ne7+ {[%clk 00:13:36]} {[%emt
00:01:15]} Kf6 {[%clk 00:02:57]} {[%emt 00:00:34]} 46. Nd5+ {[%clk 00:13:59]}
{[%emt 00:00:07]} Kg6 {[%clk 00:03:22]} {[%emt 00:00:04]} 47. h5+ {[%clk
00:14:02]} {[%emt 00:00:27]} Kh6 {[%clk 00:03:33]} {[%emt 00:00:19]} 48. Nf6
{[%clk 00:12:55]} {[%emt 00:01:37]} Bd3 {[%clk 00:03:33]} {[%emt 00:00:30]} 49.
g5+ {[%clk 00:12:15]} {[%emt 00:01:09]} Kg7 {[%clk 00:04:02]} {[%emt 00:00:01]}
50. Ng4 {[%clk 00:12:30]} {[%emt 00:00:15]} Be2 {[%clk 00:04:15]} {[%emt
00:00:17]} 51. h6+ {[%clk 00:10:35]} {[%emt 00:02:25]} Kh7 {[%clk 00:03:49]}
{[%emt 00:00:56]} 52. Nf6+ {[%clk 00:10:33]} {[%emt 00:00:32]} Kg6 {[%clk
00:04:08]} {[%emt 00:00:10]} 53. Nd7 {[%clk 00:10:37]} {[%emt 00:00:26]} Kh7
{[%clk 00:04:08]} {[%emt 00:00:30]} 54. Kf5 {[%clk 00:10:39]} {[%emt 00:00:29]}
Bd1 {[%clk 00:03:54]} {[%emt 00:00:43]} 55. Kf6 {[%clk 00:10:38]} {[%emt
00:00:31]} Kg8 {[%clk 00:04:10]} {[%emt 00:00:14]} 56. Ke7 {[%clk 00:09:56]}
{[%emt 00:01:12]} Bb3 {[%clk 00:03:38]} {[%emt 00:01:01]} 57. Nf6+ {[%clk
00:08:11]} {[%emt 00:02:15]} Kh8 {[%clk 00:04:03]} {[%emt 00:00:05]} 58. Kf8
{[%clk 00:08:37]} {[%emt 00:00:05]} Bc4 {[%clk 00:04:04]} {[%emt 00:00:29]} 59.
Ng4 {[%clk 00:08:39]} {[%emt 00:00:27]} Kh7 {[%clk 00:03:11]} {[%emt 00:01:23]}
60. Ne5 {[%clk 00:09:02]} {[%emt 00:00:07]} Bb3 {[%clk 00:03:32]} {[%emt
00:00:08]} 61. Nxf7 {[%clk 00:09:25]} {[%emt 00:00:08]} Bc2 {[%clk 00:03:22]}
{[%emt 00:00:41]} 62. Ne5 {[%clk 00:09:41]} {[%emt 00:00:14]} Bb1 {[%clk
00:03:47]} {[%emt 00:00:04]} 63. Kf7 {[%clk 00:09:55]} {[%emt 00:00:16]} Bc2
{[%clk 00:04:08]} {[%emt 00:00:09]} 64. Nd7 {[%clk 00:09:51]} {[%emt 00:00:34]}
Bb3+ {[%clk 00:04:11]} {[%emt 00:00:27]} 65. Kf6 {[%clk 00:10:11]} {[%emt
00:00:10]} Bc2 {[%clk 00:04:37]} {[%emt 00:00:03]} 66. Nf8+ {[%clk 00:10:25]}
{[%emt 00:00:16]} Kg8 {[%clk 00:05:02]} {[%emt 00:00:06]} 67. Ng6 {[%clk
00:10:49]} {[%emt 00:00:06]} Kh7 {[%clk 00:05:24]} {[%emt 00:00:08]} 68. Ne7
{[%clk 00:11:14]} {[%emt 00:00:05]} Bd1 {[%clk 00:05:28]} {[%emt 00:00:26]} 69.
Nf5 {[%clk 00:09:48]} {[%emt 00:01:56]} Bh5 {[%clk 00:05:49]} {[%emt 00:00:09]}
70. Nd4 {[%clk 00:09:45]} {[%emt 00:00:33]} Bd1 {[%clk 00:05:38]} {[%emt
00:00:40]} 71. g6+ {[%clk 00:09:14]} {[%emt 00:01:02]} Kxh6 {[%clk 00:06:02]}
{[%emt 00:00:06]} 72. g7 {[%clk 00:09:39]} {[%emt 00:00:04]} Kh7 {[%clk
00:06:23]} {[%emt 00:00:09]} 73. Kf7 {[%clk 00:10:05]} {[%emt 00:00:04]} Bh5+
{[%clk 00:06:48]} {[%emt 00:00:04]} 74. Kf8 {[%clk 00:10:30]} {[%emt 00:00:05]}
1-0

[Event "Hull 4NCL GM Tournament"]
[Site "Hull University, Hull, UK"]
[Date "2021.10.22"]
[Round "4.3"]
[White "Clarke, Brandon G I"]
[Black "Turner, Matthew J"]
[Result "1/2-1/2"]
[TimeControl "90+30"]
[WhiteElo "2442"]
[BlackElo "2471"]

1. e4 {[%clk 01:30:56]} {[%emt 00:00:02]} c6 {[%clk 01:30:41]} {[%emt
00:00:20]} 2. d4 {[%clk 01:31:05]} {[%emt 00:00:21]} d5 {[%clk 01:31:06]}
{[%emt 00:00:05]} 3. e5 {[%clk 01:31:27]} {[%emt 00:00:07]} c5 {[%clk
01:30:57]} {[%emt 00:00:40]} 4. dxc5 {[%clk 01:31:52]} {[%emt 00:00:04]} e6
{[%clk 01:30:39]} {[%emt 00:00:48]} 5. a3 {[%clk 01:32:15]} {[%emt 00:00:07]}
Nc6 {[%clk 01:30:28]} {[%emt 00:00:42]} 6. Nf3 {[%clk 01:32:41]} {[%emt
00:00:03]} Bxc5 {[%clk 01:30:52]} {[%emt 00:00:07]} 7. Bd3 {[%clk 01:32:58]}
{[%emt 00:00:12]} Nge7 {[%clk 01:31:06]} {[%emt 00:00:16]} 8. b4 {[%clk
01:33:18]} {[%emt 00:00:10]} Bb6 {[%clk 01:31:31]} {[%emt 00:00:05]} 9. Bb2
{[%clk 01:33:33]} {[%emt 00:00:15]} Ng6 {[%clk 01:31:44]} {[%emt 00:00:18]} 10.
O-O {[%clk 01:33:30]} {[%emt 00:00:32]} O-O {[%clk 01:31:57]} {[%emt 00:00:17]}
11. Re1 {[%clk 01:33:48]} {[%emt 00:00:11]} f6 {[%clk 01:32:01]} {[%emt
00:00:27]} 12. exf6 {[%clk 01:34:14]} {[%emt 00:00:04]} gxf6 {[%clk 01:32:25]}
{[%emt 00:00:06]} 13. c4 {[%clk 01:34:21]} {[%emt 00:00:23]} Nf4 {[%clk
01:32:28]} {[%emt 00:00:27]} 14. Bf1 {[%clk 01:28:21]} {[%emt 00:06:30]} e5
{[%clk 01:32:22]} {[%emt 00:00:37]} 15. Bc1 {[%clk 01:28:33]} {[%emt 00:00:17]}
dxc4 {[%clk 01:30:13]} {[%emt 00:02:39]} 16. Bxf4 {[%clk 01:28:17]} {[%emt
00:00:45]} Qxd1 {[%clk 01:29:58]} {[%emt 00:00:46]} 17. Rxd1 {[%clk 01:27:45]}
{[%emt 00:01:01]} exf4 {[%clk 01:30:20]} {[%emt 00:00:09]} 18. Bxc4+ {[%clk
01:26:36]} {[%emt 00:01:39]} Kh8 {[%clk 01:30:42]} {[%emt 00:00:08]} 19. Nc3
{[%clk 01:23:13]} {[%emt 00:03:53]} Bg4 {[%clk 01:29:17]} {[%emt 00:01:55]} 20.
Bd5 {[%clk 01:21:37]} {[%emt 00:02:06]} Rac8 {[%clk 01:24:05]} {[%emt
00:05:43]} 21. Na4 {[%clk 01:18:07]} {[%emt 00:03:59]} Rfd8 {[%clk 01:19:09]}
{[%emt 00:05:26]} 22. Nxb6 {[%clk 01:17:01]} {[%emt 00:01:36]} axb6 {[%clk
01:19:35]} {[%emt 00:00:05]} 23. h3 {[%clk 01:16:10]} {[%emt 00:01:20]} Bh5
{[%clk 01:18:07]} {[%emt 00:01:59]} 24. b5 {[%clk 01:09:47]} {[%emt 00:06:52]}
Na5 {[%clk 01:17:20]} {[%emt 00:01:18]} 25. Be6 {[%clk 01:07:26]} {[%emt
00:02:51]} Rxd1+ {[%clk 01:13:38]} {[%emt 00:04:13]} 26. Rxd1 {[%clk 01:07:52]}
{[%emt 00:00:03]} Bxf3 {[%clk 01:13:58]} {[%emt 00:00:11]} 27. gxf3 {[%clk
01:08:12]} {[%emt 00:00:10]} Rc3 {[%clk 01:13:59]} {[%emt 00:00:28]} 28. h4
{[%clk 00:44:21]} {[%emt 00:24:21]} Rxf3 {[%clk 01:11:47]} {[%emt 00:02:43]} 29.
Bf5 {[%clk 00:34:06]} {[%emt 00:10:44]} h5 {[%clk 01:06:37]} {[%emt 00:05:41]}
30. Rd8+ {[%clk 00:33:29]} {[%emt 00:01:06]} Kg7 {[%clk 01:07:02]} {[%emt
00:00:05]} 31. Rd7+ {[%clk 00:33:51]} {[%emt 00:00:09]} Kg8 {[%clk 01:06:49]}
{[%emt 00:00:42]} 32. Be6+ {[%clk 00:28:10]} {[%emt 00:06:10]} Kh8 {[%clk
01:05:23]} {[%emt 00:01:57]} 33. Rd5 {[%clk 00:26:43]} {[%emt 00:01:57]} Rxa3
{[%clk 01:05:21]} {[%emt 00:00:33]} 34. Rxh5+ {[%clk 00:27:01]} {[%emt
00:00:12]} Kg7 {[%clk 01:05:46]} {[%emt 00:00:04]} 35. Bf5 {[%clk 00:26:34]}
{[%emt 00:00:56]} Rb3 {[%clk 01:04:11]} {[%emt 00:02:05]} 36. Be4 {[%clk
00:23:31]} {[%emt 00:03:33]} Nc4 {[%clk 00:54:52]} {[%emt 00:09:50]} 37. Rh7+
{[%clk 00:22:11]} {[%emt 00:01:50]} Kf8 {[%clk 00:55:09]} {[%emt 00:00:13]} 38.
Rxb7 {[%clk 00:15:30]} {[%emt 00:07:10]} Nd6 {[%clk 00:51:53]} {[%emt
00:03:46]} 39. Rb8+ {[%clk 00:15:43]} {[%emt 00:00:17]} Kg7 {[%clk 00:51:58]}
{[%emt 00:00:25]} 40. Bc6 {[%clk 00:15:54]} {[%emt 00:00:19]} Nxb5 {[%clk
00:50:35]} {[%emt 00:01:55]} 41. Rxb6 {[%clk 00:15:59]} {[%emt 00:00:24]}
1/2-1/2